[Event "Paul Kerese Mälestusfestival 2022 Kiirturniir"]
[Site "Pärnu, Estonia Resort Hotel & Spa"]
[Date "2022.07.23"]
[Round "4.7"]
[White "Kantans, Toms"]
[Black "Mikko, Rondo"]
[Result "1-0"]
[TimeControl "15 minutit partiile + 3 sek käigule"]
[WhiteTitle "GM"]
[WhiteElo "2422"]
[BlackElo "1893"]

1. e4 {[%clk 00:15:05]} c6 {[%clk 00:14:53]} {[%emt 00:00:14]} 2. d4 {[%clk
00:15:06]} {[%emt 00:00:03]} d5 {[%clk 00:14:55]} 3. Nc3 {[%clk 00:15:07]}
{[%emt 00:00:02]} dxe4 {[%clk 00:14:56]} {[%emt 00:00:01]} 4. Nxe4 {[%clk
00:15:09]} {[%emt 00:00:01]} Nf6 {[%clk 00:14:58]} {[%emt 00:00:01]} 5. Nxf6+
{[%clk 00:15:11]} {[%emt 00:00:01]} exf6 {[%clk 00:14:58]} {[%emt 00:00:02]} 6.
c3 {[%clk 00:15:12]} {[%emt 00:00:02]} Bf5 {[%clk 00:14:45]} {[%emt 00:00:16]}
7. Bf4 {[%clk 00:14:53]} {[%emt 00:00:21]} Bd6 {[%clk 00:14:31]} {[%emt
00:00:17]} 8. Bxd6 {[%clk 00:14:50]} {[%emt 00:00:07]} Qxd6 {[%clk 00:14:33]}
{[%emt 00:00:01]} 9. Bd3 {[%clk 00:14:49]} {[%emt 00:00:03]} Bxd3 {[%clk
00:14:30]} {[%emt 00:00:06]} 10. Qxd3 {[%clk 00:14:51]} {[%emt 00:00:01]} O-O
{[%clk 00:14:30]} {[%emt 00:00:02]} 11. Ne2 {[%clk 00:14:53]} {[%emt 00:00:02]}
Nd7 {[%clk 00:14:14]} {[%emt 00:00:19]} 12. O-O {[%clk 00:14:53]} {[%emt
00:00:02]} Rfe8 {[%clk 00:13:43]} {[%emt 00:00:34]} 13. Ng3 {[%clk 00:14:55]}
{[%emt 00:00:02]} g6 {[%clk 00:13:30]} {[%emt 00:00:16]} 14. Rfd1 {[%clk
00:13:55]} {[%emt 00:01:03]} f5 {[%clk 00:13:16]} {[%emt 00:00:17]} 15. c4
{[%clk 00:13:49]} {[%emt 00:00:09]} Rad8 {[%clk 00:12:40]} {[%emt 00:00:39]} 16.
Qb3 {[%clk 00:13:41]} {[%emt 00:00:11]} b6 {[%clk 00:11:24]} {[%emt 00:01:19]}
17. Qa4 {[%clk 00:13:37]} {[%emt 00:00:07]} a6 {[%clk 00:10:26]} {[%emt
00:01:01]} 18. d5 {[%clk 00:12:36]} {[%emt 00:01:05]} Ne5 {[%clk 00:09:49]}
{[%emt 00:00:39]} 19. dxc6 {[%clk 00:08:33]} {[%emt 00:04:06]} Qxc6 {[%clk
00:09:10]} {[%emt 00:00:41]} 20. Qxc6 {[%clk 00:08:11]} {[%emt 00:00:24]} Nxc6
{[%clk 00:09:10]} {[%emt 00:00:03]} 21. Kf1 {[%clk 00:08:03]} {[%emt 00:00:11]}
Kf8 {[%clk 00:09:00]} {[%emt 00:00:13]} 22. Ne2 {[%clk 00:07:59]} {[%emt
00:00:07]} Ne5 {[%clk 00:06:12]} {[%emt 00:02:51]} 23. b3 {[%clk 00:07:51]}
{[%emt 00:00:12]} Nc6 {[%clk 00:05:26]} {[%emt 00:00:48]} 24. Nc3 {[%clk
00:06:44]} {[%emt 00:01:11]} Nb4 {[%clk 00:04:53]} {[%emt 00:00:36]} 25. g3
{[%clk 00:06:26]} {[%emt 00:00:20]} h6 {[%clk 00:04:32]} {[%emt 00:00:25]} 26.
h4 {[%clk 00:05:32]} {[%emt 00:00:58]} h5 {[%clk 00:02:27]} {[%emt 00:02:07]}
27. Rab1 {[%clk 00:01:48]} {[%emt 00:03:47]} Nc6 {[%clk 00:00:24]} {[%emt
00:02:06]} 28. Nd5 {[%clk 00:01:37]} {[%emt 00:00:13]} b5 {[%clk 00:00:18]}
{[%emt 00:00:10]} 29. Nc7 {[%clk 00:01:15]} {[%emt 00:00:26]} Rxd1+ {[%clk
00:00:18]} {[%emt 00:00:02]} 30. Rxd1 {[%clk 00:01:17]} Rc8 {[%clk 00:00:14]}
{[%emt 00:00:08]} 31. Nxa6 {[%clk 00:00:43]} {[%emt 00:00:37]} bxc4 {[%emt
00:00:02]} 32. b4 1-0

[Event "Paul Kerese Mälestusfestival 2022 Kiirturniir"]
[Site "Pärnu, Estonia Resort Hotel & Spa"]
[Date "2022.07.23"]
[Round "4.8"]
[White "Aitsen, Alver"]
[Black "Olde, Grete"]
[Result "0-1"]
[TimeControl "15 minutit partiile + 3 sek käigule"]
[BlackTitle "WCM"]
[WhiteElo "1651"]
[BlackElo "2054"]

1. e4 {[%clk 00:15:03]} {[%emt 00:00:02]} e5 {[%clk 00:15:05]} {[%emt
00:00:01]} 2. Nf3 {[%clk 00:15:03]} {[%emt 00:00:04]} Nc6 {[%clk 00:15:06]}
{[%emt 00:00:01]} 3. d4 {[%clk 00:15:02]} {[%emt 00:00:04]} exd4 {[%clk
00:15:07]} {[%emt 00:00:02]} 4. Bc4 {[%clk 00:15:02]} {[%emt 00:00:04]} Nf6
{[%clk 00:14:47]} {[%emt 00:00:23]} 5. e5 {[%clk 00:15:03]} {[%emt 00:00:02]}
d5 {[%clk 00:14:48]} 6. Bb5 {[%clk 00:14:38]} {[%emt 00:00:29]} Ne4 {[%clk
00:14:24]} {[%emt 00:00:27]} 7. Nxd4 {[%clk 00:14:38]} {[%emt 00:00:03]} Bd7
{[%clk 00:14:23]} {[%emt 00:00:04]} 8. Bxc6 {[%clk 00:14:35]} {[%emt 00:00:07]}
bxc6 {[%clk 00:14:16]} {[%emt 00:00:10]} 9. O-O {[%clk 00:14:02]} {[%emt
00:00:36]} Bc5 {[%clk 00:13:30]} {[%emt 00:00:48]} 10. f3 {[%clk 00:13:49]}
{[%emt 00:00:17]} Ng5 {[%clk 00:13:15]} {[%emt 00:00:16]} 11. f4 {[%clk
00:13:50]} {[%emt 00:00:03]} Ne4 {[%clk 00:13:09]} {[%emt 00:00:10]} 12. Be3
{[%clk 00:13:52]} {[%emt 00:00:01]} O-O {[%clk 00:12:33]} {[%emt 00:00:39]} 13.
Nd2 {[%clk 00:13:50]} {[%emt 00:00:05]} Nxd2 {[%clk 00:11:29]} {[%emt
00:01:07]} 14. Qxd2 {[%clk 00:13:50]} {[%emt 00:00:03]} Bb6 {[%clk 00:11:15]}
{[%emt 00:00:18]} 15. a4 {[%clk 00:12:45]} {[%emt 00:01:09]} a5 {[%clk
00:11:03]} {[%emt 00:00:15]} 16. f5 {[%clk 00:12:02]} {[%emt 00:00:46]} Qe7
{[%clk 00:08:11]} {[%emt 00:02:53]} 17. Nf3 {[%clk 00:09:19]} {[%emt 00:02:48]}
Bxf5 {[%clk 00:07:41]} {[%emt 00:00:33]} 18. Bxb6 {[%clk 00:09:18]} {[%emt
00:00:03]} cxb6 {[%clk 00:07:43]} {[%emt 00:00:02]} 19. Rae1 {[%clk 00:09:02]}
{[%emt 00:00:19]} Qc5+ {[%clk 00:07:01]} {[%emt 00:00:45]} 20. Nd4 {[%clk
00:08:54]} {[%emt 00:00:11]} Be4 {[%clk 00:06:45]} {[%emt 00:00:19]} 21. Kh1
{[%clk 00:08:29]} {[%emt 00:00:29]} Rae8 {[%clk 00:06:29]} {[%emt 00:00:18]} 22.
e6 {[%clk 00:07:31]} {[%emt 00:01:02]} fxe6 {[%clk 00:06:23]} {[%emt 00:00:08]}
23. Rxf8+ {[%clk 00:07:31]} {[%emt 00:00:03]} Rxf8 {[%clk 00:05:17]} {[%emt
00:01:09]} 24. Nxe6 {[%clk 00:07:20]} {[%emt 00:00:14]} Qf2 {[%clk 00:05:17]}
{[%emt 00:00:03]} 25. Qxf2 {[%clk 00:05:39]} {[%emt 00:01:44]} Rxf2 {[%clk
00:05:18]} {[%emt 00:00:02]} 26. Ng5 {[%clk 00:05:40]} {[%emt 00:00:01]} Rxc2
{[%clk 00:04:50]} {[%emt 00:00:31]} 27. Kg1 {[%clk 00:05:33]} {[%emt 00:00:10]}
Rxg2+ {[%clk 00:04:49]} {[%emt 00:00:04]} 28. Kf1 {[%clk 00:05:33]} {[%emt
00:00:03]} Rxg5 {[%clk 00:04:50]} {[%emt 00:00:02]} 29. Rc1 {[%clk 00:05:03]}
{[%emt 00:00:33]} c5 {[%clk 00:04:48]} {[%emt 00:00:06]} 30. b4 {[%clk
00:04:32]} {[%emt 00:00:33]} axb4 {[%clk 00:04:10]} {[%emt 00:00:41]} 31. a5
{[%clk 00:04:34]} bxa5 {[%clk 00:04:12]} {[%emt 00:00:01]} 32. Rxc5 {[%clk
00:04:36]} {[%emt 00:00:01]} b3 {[%clk 00:04:03]} {[%emt 00:00:12]} 33. h4
{[%clk 00:04:31]} {[%emt 00:00:07]} Rf5+ {[%clk 00:03:52]} {[%emt 00:00:14]} 34.
Ke2 {[%clk 00:04:32]} {[%emt 00:00:03]} b2 {[%clk 00:03:54]} {[%emt 00:00:01]}
35. h5 {[%clk 00:04:21]} {[%emt 00:00:13]} b1=Q {[%clk 00:03:52]} {[%emt
00:00:05]} 36. h6 {[%clk 00:04:19]} {[%emt 00:00:06]} Qd3+ {[%clk 00:03:52]}
{[%emt 00:00:03]} 37. Ke1 {[%clk 00:04:18]} {[%emt 00:00:04]} Rf1# {[%clk
00:03:53]} {[%emt 00:00:02]} 0-1

[Event "Paul Kerese Mälestusfestival 2022 Kiirturniir"]
[Site "Pärnu, Estonia Resort Hotel & Spa"]
[Date "????.??.??"]
[Round "5.1"]
[White "Shirov, Alexei"]
[Black "Agrest, Evgenij"]
[Result "0-1"]
[TimeControl "15 minutit partiile + 3 sek käigule"]
[WhiteTitle "GM"]
[BlackTitle "GM"]
[WhiteFideId "2209390"]
[WhiteElo "2621"]
[BlackElo "2563"]

1. e4 {[%clk 00:15:03]} {[%emt 00:00:01]} c6 {[%clk 00:15:01]} {[%emt
00:00:06]} 2. d4 {[%clk 00:15:04]} {[%emt 00:00:02]} d5 {[%clk 00:15:01]}
{[%emt 00:00:04]} 3. e5 {[%clk 00:15:06]} c5 {[%clk 00:14:51]} {[%emt
00:00:13]} 4. dxc5 {[%clk 00:15:07]} {[%emt 00:00:02]} e6 {[%clk 00:14:48]}
{[%emt 00:00:06]} 5. a3 {[%clk 00:14:52]} {[%emt 00:00:18]} Bxc5 {[%clk
00:14:39]} {[%emt 00:00:12]} 6. Nf3 {[%clk 00:14:53]} {[%emt 00:00:02]} f6
{[%clk 00:13:51]} {[%emt 00:00:51]} 7. b4 {[%clk 00:11:40]} {[%emt 00:03:17]}
Be7 {[%clk 00:13:51]} {[%emt 00:00:03]} 8. Bb5+ {[%clk 00:11:42]} {[%emt
00:00:02]} Bd7 {[%clk 00:11:20]} {[%emt 00:02:33]} 9. Bd3 {[%clk 00:11:41]}
{[%emt 00:00:03]} Nc6 {[%clk 00:10:56]} {[%emt 00:00:28]} 10. O-O {[%clk
00:07:08]} {[%emt 00:04:36]} Nxe5 {[%clk 00:09:38]} {[%emt 00:01:21]} 11. Nxe5
{[%clk 00:06:54]} {[%emt 00:00:17]} fxe5 {[%clk 00:09:36]} {[%emt 00:00:06]} 12.
Bb2 {[%clk 00:06:00]} {[%emt 00:00:57]} Bf6 {[%clk 00:08:36]} {[%emt 00:01:03]}
13. Bxe5 {[%clk 00:05:57]} {[%emt 00:00:06]} Bxe5 {[%clk 00:08:33]} {[%emt
00:00:06]} 14. Qh5+ {[%clk 00:05:58]} {[%emt 00:00:02]} g6 {[%clk 00:07:31]}
{[%emt 00:01:05]} 15. Qxe5 {[%clk 00:05:59]} {[%emt 00:00:02]} Qf6 {[%clk
00:07:32]} {[%emt 00:00:02]} 16. Re1 {[%clk 00:04:47]} {[%emt 00:01:16]} Qxe5
{[%clk 00:06:53]} {[%emt 00:00:42]} 17. Rxe5 {[%clk 00:04:48]} {[%emt
00:00:02]} Nf6 {[%clk 00:06:18]} {[%emt 00:00:38]} 18. Nd2 {[%clk 00:04:49]}
{[%emt 00:00:02]} O-O {[%clk 00:05:25]} {[%emt 00:00:56]} 19. Nb3 {[%clk
00:04:10]} {[%emt 00:00:42]} b6 {[%clk 00:04:15]} {[%emt 00:01:14]} 20. h3
{[%clk 00:03:56]} {[%emt 00:00:16]} a5 {[%clk 00:03:23]} {[%emt 00:00:55]} 21.
bxa5 {[%clk 00:01:51]} {[%emt 00:02:09]} bxa5 {[%clk 00:03:24]} {[%emt
00:00:02]} 22. Nc5 {[%clk 00:01:41]} {[%emt 00:00:13]} Kf7 {[%clk 00:03:10]}
{[%emt 00:00:17]} 23. Rae1 {[%clk 00:01:42]} {[%emt 00:00:01]} Rfe8 {[%clk
00:03:09]} {[%emt 00:00:04]} 24. g4 {[%clk 00:01:44]} {[%emt 00:00:01]} Bc8
{[%clk 00:02:20]} {[%emt 00:00:52]} 25. c4 {[%clk 00:01:33]} {[%emt 00:00:14]}
Ra7 {[%clk 00:01:27]} {[%emt 00:00:57]} 26. cxd5 {[%clk 00:01:31]} {[%emt
00:00:04]} exd5 {[%clk 00:01:18]} {[%emt 00:00:11]} 27. Rxe8 {[%clk 00:00:58]}
{[%emt 00:00:37]} Nxe8 {[%clk 00:01:20]} {[%emt 00:00:02]} 28. Bb5 {[%clk
00:00:59]} {[%emt 00:00:01]} Nf6 {[%clk 00:00:52]} {[%emt 00:00:31]} 29. Nd3
{[%clk 00:01:00]} {[%emt 00:00:01]} Re7 {[%clk 00:00:45]} {[%emt 00:00:10]} 30.
Ne5+ {[%clk 00:00:44]} {[%emt 00:00:19]} Kg7 {[%clk 00:00:46]} {[%emt
00:00:02]} 31. f3 {[%clk 00:00:35]} {[%emt 00:00:12]} Bb7 {[%clk 00:00:40]}
{[%emt 00:00:09]} 32. Bd3 {[%clk 00:00:21]} {[%emt 00:00:16]} Nd7 {[%clk
00:00:25]} {[%emt 00:00:19]} 33. f4 {[%clk 00:00:23]} {[%emt 00:00:01]} Nxe5
{[%clk 00:00:17]} {[%emt 00:00:10]} 34. Rxe5 {[%clk 00:00:24]} {[%emt
00:00:02]} Rxe5 {[%clk 00:00:19]} {[%emt 00:00:02]} 35. fxe5 {[%clk 00:00:26]}
{[%emt 00:00:01]} Kf7 {[%clk 00:00:21]} 36. h4 {[%clk 00:00:15]} {[%emt
00:00:13]} Ke6 {[%clk 00:00:23]} {[%emt 00:00:01]} 37. h5 {[%clk 00:00:14]}
{[%emt 00:00:04]} gxh5 {[%clk 00:00:15]} {[%emt 00:00:11]} 38. g5 {[%clk
00:00:15]} {[%emt 00:00:01]} Kxe5 {[%clk 00:00:16]} {[%emt 00:00:01]} 39. Bxh7
{[%clk 00:00:17]} {[%emt 00:00:02]} d4 {[%clk 00:00:18]} {[%emt 00:00:01]} 40.
Bd3 {[%clk 00:00:10]} {[%emt 00:00:09]} Bd5 {[%clk 00:00:18]} {[%emt 00:00:04]}
41. Kf2 {[%clk 00:00:06]} {[%emt 00:00:07]} Kf4 {[%clk 00:00:19]} {[%emt
00:00:01]} 42. g6 {[%clk 00:00:07]} {[%emt 00:00:02]} h4 {[%clk 00:00:21]}
{[%emt 00:00:01]} 43. g7 {[%clk 00:00:05]} {[%emt 00:00:05]} h3 {[%clk
00:00:23]} 44. Bf1 {[%clk 00:00:05]} {[%emt 00:00:03]} h2 {[%clk 00:00:23]}
{[%emt 00:00:04]} 45. Bg2 {[%clk 00:00:06]} {[%emt 00:00:01]} Bg8 {[%clk
00:00:25]} 46. Ke2 {[%clk 00:00:06]} {[%emt 00:00:04]} Bh7 {[%clk 00:00:26]}
{[%emt 00:00:02]} 47. Kd2 {[%clk 00:00:04]} {[%emt 00:00:04]} Kg3 {[%clk
00:00:28]} {[%emt 00:00:02]} 48. Bh1 {[%emt 00:00:12]} 0-1

[Event "Paul Kerese Mälestusfestival 2022 Kiirturniir"]
[Site "Pärnu, Estonia Resort Hotel & Spa"]
[Date "????.??.??"]
[Round "5.2"]
[White "Maiorov, Nikita"]
[Black "Golubovskis, Maksims"]
[Result "1-0"]
[TimeControl "15 minutit partiile + 3 sek käigule"]
[WhiteTitle "GM"]
[BlackTitle "FM"]
[WhiteElo "2431"]
[BlackElo "2209"]

1. d4 {[%clk 00:15:00]} {[%emt 00:00:04]} Nf6 {[%clk 00:13:09]} {[%emt
00:01:58]} 2. c4 {[%clk 00:15:01]} {[%emt 00:00:02]} e6 {[%clk 00:13:11]}
{[%emt 00:00:01]} 3. Nf3 {[%clk 00:15:03]} {[%emt 00:00:01]} d5 {[%clk
00:13:12]} {[%emt 00:00:03]} 4. Nc3 {[%clk 00:15:03]} {[%emt 00:00:02]} Bb4
{[%clk 00:13:11]} {[%emt 00:00:04]} 5. cxd5 {[%clk 00:14:56]} {[%emt 00:00:11]}
exd5 {[%clk 00:13:12]} 6. Bg5 {[%clk 00:14:57]} {[%emt 00:00:02]} h6 {[%clk
00:13:08]} {[%emt 00:00:07]} 7. Bh4 {[%clk 00:14:58]} {[%emt 00:00:01]} O-O
{[%clk 00:12:21]} {[%emt 00:00:50]} 8. e3 {[%clk 00:14:59]} {[%emt 00:00:02]}
c6 {[%clk 00:11:55]} {[%emt 00:00:29]} 9. Bd3 {[%clk 00:14:54]} {[%emt
00:00:08]} Be7 {[%clk 00:10:26]} {[%emt 00:01:32]} 10. Qc2 {[%clk 00:14:48]}
{[%emt 00:00:09]} Re8 {[%clk 00:10:14]} {[%emt 00:00:16]} 11. O-O {[%clk
00:14:24]} {[%emt 00:00:27]} Ne4 {[%clk 00:09:52]} {[%emt 00:00:25]} 12. Bxe7
{[%clk 00:13:30]} {[%emt 00:00:57]} Qxe7 {[%clk 00:09:54]} {[%emt 00:00:01]} 13.
Bxe4 {[%clk 00:13:31]} {[%emt 00:00:02]} dxe4 {[%clk 00:09:55]} {[%emt
00:00:01]} 14. Nd2 {[%clk 00:13:32]} {[%emt 00:00:01]} Bf5 {[%clk 00:09:12]}
{[%emt 00:00:46]} 15. f3 {[%clk 00:13:17]} {[%emt 00:00:18]} Qg5 {[%clk
00:09:14]} {[%emt 00:00:02]} 16. f4 {[%clk 00:10:49]} {[%emt 00:02:31]} Qe7
{[%clk 00:08:19]} {[%emt 00:00:58]} 17. Ne2 {[%clk 00:10:46]} {[%emt 00:00:05]}
Nd7 {[%clk 00:07:54]} {[%emt 00:00:28]} 18. Ng3 {[%clk 00:10:48]} {[%emt
00:00:02]} Qe6 {[%clk 00:07:55]} {[%emt 00:00:02]} 19. Qb3 {[%clk 00:10:30]}
{[%emt 00:00:20]} Qxb3 {[%clk 00:07:16]} {[%emt 00:00:42]} 20. axb3 {[%clk
00:10:06]} {[%emt 00:00:28]} g6 {[%clk 00:07:18]} {[%emt 00:00:01]} 21. Nc4
{[%clk 00:10:04]} {[%emt 00:00:05]} Re6 {[%clk 00:05:12]} {[%emt 00:02:09]} 22.
Ne2 {[%clk 00:09:06]} {[%emt 00:01:01]} Nf6 {[%clk 00:04:39]} {[%emt 00:00:35]}
23. h3 {[%clk 00:09:07]} {[%emt 00:00:03]} h5 {[%clk 00:04:36]} {[%emt
00:00:06]} 24. Nb6 {[%clk 00:09:02]} {[%emt 00:00:09]} Rb8 {[%clk 00:04:08]}
{[%emt 00:00:32]} 25. Rxa7 {[%clk 00:09:02]} {[%emt 00:00:02]} Nd5 {[%clk
00:04:09]} {[%emt 00:00:01]} 26. Nxd5 {[%clk 00:09:02]} {[%emt 00:00:03]} cxd5
{[%clk 00:04:10]} {[%emt 00:00:01]} 27. Rfa1 {[%clk 00:09:01]} {[%emt
00:00:05]} Rb6 {[%clk 00:04:07]} {[%emt 00:00:07]} 28. R1a3 {[%clk 00:08:59]}
{[%emt 00:00:05]} Kg7 {[%clk 00:03:54]} {[%emt 00:00:16]} 29. Nc3 {[%clk
00:09:01]} Be6 {[%clk 00:03:54]} {[%emt 00:00:04]} 30. R7a5 {[%clk 00:09:01]}
{[%emt 00:00:03]} Rc8 {[%clk 00:03:49]} {[%emt 00:00:08]} 31. Kf2 {[%clk
00:08:21]} {[%emt 00:00:41]} h4 {[%clk 00:03:46]} {[%emt 00:00:08]} 32. Ke2
{[%clk 00:08:23]} {[%emt 00:00:02]} f6 {[%clk 00:03:34]} {[%emt 00:00:15]} 33.
Kd2 {[%clk 00:08:23]} {[%emt 00:00:02]} Rd6 {[%clk 00:03:25]} {[%emt 00:00:12]}
34. Rb5 {[%clk 00:08:20]} {[%emt 00:00:06]} g5 {[%clk 00:02:19]} {[%emt
00:01:10]} 35. Rxb7+ {[%clk 00:08:10]} {[%emt 00:00:13]} Kg6 {[%clk 00:02:20]}
{[%emt 00:00:01]} 36. fxg5 {[%clk 00:06:56]} {[%emt 00:01:17]} fxg5 {[%clk
00:02:22]} 37. Raa7 {[%clk 00:06:57]} {[%emt 00:00:02]} Bg8 {[%clk 00:01:50]}
{[%emt 00:00:35]} 38. Ra1 {[%clk 00:04:54]} {[%emt 00:02:06]} Rf6 {[%clk
00:01:41]} {[%emt 00:00:13]} 39. Re1 {[%clk 00:04:55]} {[%emt 00:00:02]} Be6
{[%clk 00:01:29]} {[%emt 00:00:15]} 40. Rb6 {[%clk 00:04:48]} {[%emt 00:00:10]}
Kf7 {[%clk 00:00:54]} {[%emt 00:00:38]} 41. b4 {[%clk 00:04:45]} {[%emt
00:00:06]} Rf2+ {[%clk 00:00:47]} {[%emt 00:00:10]} 42. Re2 {[%clk 00:04:46]}
{[%emt 00:00:02]} Rf1 {[%clk 00:00:49]} {[%emt 00:00:01]} 43. b5 {[%clk
00:04:43]} {[%emt 00:00:06]} g4 {[%clk 00:00:47]} {[%emt 00:00:06]} 44. Rb7+
{[%clk 00:04:29]} {[%emt 00:00:16]} Kg6 {[%clk 00:00:31]} {[%emt 00:00:18]} 45.
Re7 {[%clk 00:04:03]} {[%emt 00:00:29]} Bf5 {[%clk 00:00:16]} {[%emt 00:00:19]}
46. b6 {[%clk 00:03:44]} {[%emt 00:00:22]} gxh3 {[%clk 00:00:16]} {[%emt
00:00:02]} 47. gxh3 {[%clk 00:03:47]} Bxh3 {[%clk 00:00:09]} {[%emt 00:00:11]}
48. b7 {[%clk 00:03:48]} {[%emt 00:00:02]} Rcf8 {[%clk 00:00:07]} {[%emt
00:00:05]} 49. Nxd5 {[%clk 00:03:41]} {[%emt 00:00:10]} Bg4 {[%clk 00:00:05]}
{[%emt 00:00:05]} 50. Rg2 {[%clk 00:03:29]} {[%emt 00:00:14]} R8f2+ {[%clk
00:00:05]} {[%emt 00:00:04]} 51. Rxf2 {[%clk 00:03:30]} {[%emt 00:00:02]} Rxf2+
{[%clk 00:00:07]} 52. Kc3 {[%clk 00:03:28]} {[%emt 00:00:05]} Rf8 {[%clk
00:00:08]} {[%emt 00:00:01]} 53. Nf4+ {[%clk 00:03:21]} {[%emt 00:00:11]} Kf5
{[%clk 00:00:10]} {[%emt 00:00:02]} 54. Rf7+ {[%clk 00:03:15]} {[%emt
00:00:08]} 1-0